bitfinex/quotes_SOLUSD_20240713
["timestamp","ask_amount","ask_price","bid_price","bid_amount"]
[1720850519894,12.58,139.35,139.3,11.58]
[1720850520584,1.0,139.35,139.31,13.0154469]
[1720850520782,15.324,139.37,139.31,13.0154469]
[1720850520783,12.58,139.36,139.31,13.0154469]
[1720850520981,1.0,139.35,139.31,13.0154469]
[1720850522393,1.0,139.35,139.31,11.58]
[1720850522787,1.0,139.35,139.27,1.43542707]
[1720850522974,12.58,139.35,139.27,46.43542707]
[1720850523180,12.58,139.35,139.3,11.58]
[1720850523379,11.58,139.34,139.29,13.0156125]
[1720850523607,1.0,139.33,139.29,13.0156125]
[1720850524276,1.0,139.32,139.29,11.58]
[1720850524782,11.58,139.34,139.29,11.58]
[1720850525477,11.58,139.35,139.3,1.43575027]
[1720850525803,1.0,139.34,139.3,11.58]
[1720850526496,12.58,139.34,139.29,11.58]
[1720850527592,1.0,139.34,139.3,11.58]
[1720850528398,1.0,139.34,139.26,1.43567451]
[1720850528603,12.58,139.34,139.29,11.58]
[1720850532198,1.0,139.34,139.29,11.58]
[1720850532384,21.0,139.36,139.3,1.43526318]
[1720850532581,1.0,139.35,139.31,11.58]
[1720850532916,1.0,139.35,139.26,65.0]
[1720850533082,1.0,139.35,139.3,11.58]
[1720850533278,12.58,139.35,139.3,11.58]
[1720850533906,12.58,139.35,139.31,11.58]
[1720850534098,1.0,139.35,139.31,11.58]
[1720850534800,12.58,139.35,139.3,11.58]
[1720850535180,12.58,139.35,139.26,65.0]
[1720850535506,12.58,139.35,139.3,11.58]
[1720850536102,12.58,139.35,139.27,1.4355805]
[1720850536305,12.58,139.35,139.3,11.58]
[1720850537903,12.58,139.35,139.27,1.4355805]
[1720850538102,12.58,139.35,139.3,11.58]
[1720850538592,12.58,139.35,139.27,1.4355805]
[1720850538793,12.58,139.35,139.3,11.58]
[1720850541109,1.0,139.35,139.3,11.58]
[1720850541406,12.58,139.35,139.3,11.58]
[1720850543314,34.0324,139.34,139.22,255.3]
[1720850543623,12.58,139.33,139.28,11.58]
[1720850543803,12.58,139.32,139.27,11.58]
[1720850547398,1.0,139.32,139.28,13.01577114]
[1720850547601,11.58,139.33,139.29,11.58]
[1720850547602,1.0,139.33,139.29,11.58]
[1720850550318,12.58,139.33,139.28,11.58]
[1720850550617,11.58,139.32,139.27,11.58]
[1720850550906,1.0,139.31,139.27,11.58]
[1720850551499,1.0,139.31,139.24,1.43579201]
[1720850551701,1.0,139.31,139.27,11.58]
[1720850552210,1.0,139.31,139.23,20.0]
[1720850552415,1.0,139.31,139.21,16.3209]
[1720850552416,12.58,139.31,139.26,11.58]
[1720850552716,12.58,139.3,139.25,11.58]
[1720850554704,16.2946,139.29,139.24,11.58]
[1720850554909,1.0,139.28,139.24,11.58]
[1720850557820,1.0,139.28,139.25,11.58]
[1720850558902,1.0,139.28,139.23,1.43618058]
[1720850559214,1.0,139.28,139.25,11.58]
[1720850560217,1.0,139.28,139.24,13.01618516]
[1720850560423,1.0,139.28,139.24,11.58]
[1720850561004,1.0,139.28,139.25,11.58]
[1720850561828,17.2946,139.29,139.25,11.58]
[1720850562125,17.2946,139.29,139.26,11.58]
[1720850562312,17.2946,139.29,139.23,1.43612308]
[1720850562511,17.2946,139.29,139.25,11.58]
[1720850563022,28.8746,139.29,139.24,11.58]
[1720850564221,28.8746,139.29,139.23,1.43612308]
[1720850564429,28.8746,139.29,139.24,11.58]
[1720850565224,28.8746,139.29,139.23,1.43612308]
[1720850565422,28.8746,139.29,139.24,13.01619088]
[1720850565635,17.2946,139.29,139.24,13.01619088]
[1720850565806,1.0,139.28,139.25,11.58]
[1720850567504,1.0,139.28,139.26,11.58]
[1720850567827,1.0,139.28,139.23,1.43619028]
[1720850568026,1.0,139.28,139.26,11.58]
[1720850568527,16.2946,139.29,139.26,11.58]
[1720850568932,13.7946,139.29,139.26,11.58]
[1720850569135,1.0,139.3,139.27,11.58]
[1720850569312,11.58,139.32,139.27,11.58]
[1720850569512,21.0,139.31,139.27,11.58]
[1720850569719,32.58,139.31,139.26,11.58]
[1720850569916,21.0,139.31,139.26,11.58]
[1720850570127,1.0,139.31,139.27,11.58]
[1720850570307,1.0,139.31,139.23,1.43597307]
[1720850570508,1.0,139.32,139.29,11.58]
[1720850571230,1.0,139.32,139.28,11.58]
[1720850571803,12.58,139.32,139.23,45.0]
[1720850572002,27.8313,139.32,139.27,11.58]
[1720850572218,27.8313,139.32,139.24,20.0]
[1720850572424,27.8313,139.32,139.27,11.58]
[1720850572624,11.58,139.31,139.26,11.58]
[1720850572931,1.0,139.3,139.26,11.58]
[1720850573224,1.0,139.3,139.27,11.58]
[1720850573813,1.0,139.31,139.27,11.58]
[1720850574731,12.58,139.31,139.26,11.58]
[1720850576229,1.0,139.31,139.27,11.58]
[1720850578448,1.0,139.31,139.25,1.43598613]
[1720850578638,12.58,139.31,139.26,11.58]
[1720850579342,22.58,139.31,139.24,1.43607168]
[1720850579521,22.58,139.31,139.25,11.58]
[1720850580351,12.58,139.31,139.25,11.58]
[1720850580649,1.0,139.31,139.26,13.01613129]
[1720850580821,1.0,139.31,139.29,11.58]
[1720850582121,1.0,139.31,139.28,11.58]
[1720850582940,1.0,139.32,139.29,11.58]
[1720850583538,1.0,139.32,139.3,11.58]
[1720850584038,1.0,139.33,139.3,11.58]
[1720850584218,1.0,139.32,139.3,11.58]
[1720850584626,1.0,139.34,139.3,11.58]
[1720850585438,1.0,139.34,139.29,11.58]
[1720850585734,11.58,139.33,139.28,11.58]
[1720850585941,1.0,139.32,139.28,11.58]
[1720850586440,1.0,139.32,139.27,1.43576093]
[1720850586633,1.0,139.32,139.29,11.58]
[1720850586832,1.0,139.33,139.29,11.58]
[1720850587036,1.0,139.32,139.28,11.58]
[1720850587944,1.0,139.33,139.28,11.58]
[1720850588240,1.0,139.32,139.25,6.453]
[1720850588443,1.0,139.32,139.28,11.58]
[1720850589035,1.0,139.33,139.28,11.58]
[1720850589228,1.0,139.32,139.28,11.58]
[1720850590136,1.0,139.33,139.28,11.58]
[1720850590340,1.0,139.32,139.29,11.58]
[1720850591043,1.0,139.32,139.23,16.5186]
[1720850591238,1.0,139.32,139.29,11.58]
[1720850591617,1.0,139.32,139.27,11.58]
[1720850592527,12.58,139.32,139.27,11.58]
[1720850594427,12.58,139.32,139.23,16.5186]
[1720850594637,15.1145,139.31,139.24,21.43595614]
[1720850594835,1.0,139.3,139.26,11.58]
[1720850595041,1.0,139.29,139.27,11.58]
[1720850595241,15.1145,139.31,139.27,11.58]
[1720850596025,15.1145,139.31,139.24,1.43595614]
[1720850596227,1.0,139.3,139.26,11.58]
[1720850596521,1.0,139.3,139.27,11.58]
[1720850597353,1.0,139.3,139.26,11.58]
[1720850599847,1.0,139.3,139.25,11.58]
[1720850600054,1.0,139.3,139.24,11.58]
[1720850600055,11.58,139.29,139.24,11.58]
[1720850600233,1.0,139.28,139.24,11.58]
[1720850602231,1.0,139.28,139.23,11.58]
[1720850602431,1.0,139.28,139.2,1.43638322]
[1720850602632,1.0,139.28,139.23,11.58]
[1720850602853,1.0,139.28,139.24,11.58]
[1720850603355,1.0,139.28,139.25,11.58]
[1720850603547,1.0,139.29,139.25,11.58]
[1720850610053,16.1145,139.31,139.28,11.58]
[1720850610249,1.0,139.32,139.26,1.43594415]
[1720850610431,12.58,139.34,139.29,11.58]
[1720850610632,12.58,139.34,139.27,1.4357165]
[1720850610954,11.58,139.33,139.28,11.58]
[1720850611137,1.0,139.32,139.28,11.58]
[1720850611855,1.0,139.32,139.25,1.43588309]
[1720850612154,1.0,139.32,139.28,11.58]
[1720850612449,1.0,139.32,139.24,16.6248]
[1720850612648,1.0,139.32,139.28,11.58]
[1720850613262,12.58,139.32,139.27,11.58]
[1720850613458,1.0,139.31,139.27,11.58]
[1720850614632,11.58,139.33,139.27,11.58]
[1720850614837,1.0,139.32,139.27,11.58]
[1720850615840,12.58,139.32,139.27,11.58]
[1720850616339,12.58,139.32,139.25,1.43594594]
[1720850616646,1.0,139.32,139.27,11.58]
[1720850617054,21.0,139.32,139.27,11.58]
[1720850618248,21.0,139.32,139.28,11.58]
[1720850620262,21.0,139.32,139.27,11.58]
[1720850622874,31.0,139.32,139.26,11.58]
[1720850623058,73.1158,139.31,139.22,1.43616579]
[1720850623258,12.58,139.3,139.25,11.58]
[1720850623463,1.0,139.29,139.25,11.58]
[1720850623776,1.0,139.29,139.26,11.58]
[1720850624380,1.0,139.3,139.26,11.58]
[1720850624676,1.0,139.29,139.26,11.58]
[1720850625440,1.0,139.3,139.26,11.58]
[1720850625750,1.0,139.29,139.26,11.58]
[1720850625968,1.0,139.29,139.22,1.43616579]
[1720850626173,1.0,139.29,139.25,11.58]
[1720850626556,1.0,139.28,139.25,11.58]
[1720850626757,12.58,139.3,139.25,11.58]
[1720850627075,1.0,139.29,139.25,11.58]
[1720850628654,1.0,139.3,139.25,11.58]
[1720850628853,1.0,139.29,139.26,11.58]
[1720850629770,1.0,139.29,139.25,11.58]
[1720850629987,1.0,139.28,139.25,11.58]
[1720850630284,1.0,139.28,139.26,11.58]
[1720850630774,1.0,139.28,139.25,11.58]
[1720850630952,1.0,139.29,139.25,11.58]
[1720850631882,12.58,139.29,139.24,11.58]
[1720850632074,1.0,139.29,139.25,11.58]
[1720850634249,1.0,139.29,139.21,6.3656]
[1720850634444,1.0,139.29,139.25,11.58]
[1720850634644,1.0,139.29,139.24,11.58]
[1720850638780,12.58,139.29,139.24,11.58]
[1720850638985,12.58,139.29,139.22,1.43617852]
[1720850639160,12.58,139.29,139.24,11.58]
[1720850641468,12.58,139.29,139.23,11.58]
[1720850641685,11.58,139.28,139.23,11.58]
[1720850641972,1.0,139.27,139.23,11.58]
[1720850643075,11.58,139.28,139.23,11.58]
[1720850643259,1.0,139.27,139.23,11.58]
[1720850643575,1.0,139.27,139.21,1.43631346]
[1720850643576,1.0,139.27,139.24,11.58]
[1720850644471,1.0,139.28,139.24,11.58]
[1720850645778,12.58,139.28,139.23,11.58]
[1720850650281,1.0,139.28,139.21,1.43632099]
[1720850650476,1.0,139.28,139.21,21.43632099]
[1720850650861,1.0,139.27,139.21,21.43632099]
[1720850651066,1.0,139.29,139.21,21.43632099]
[1720850652387,1.0,139.28,139.21,21.43632099]
[1720850653171,1.0,139.29,139.21,21.43632099]
[1720850653369,1.0,139.3,139.22,45.0]
[1720850653582,1.0,139.29,139.26,11.58]
[1720850654472,1.0,139.29,139.25,11.58]
[1720850654672,1.0,139.28,139.23,1.43609241]
[1720850654977,1.0,139.28,139.24,11.58]
[1720850655378,1.0,139.28,139.22,1.43618552]
[1720850655583,1.0,139.28,139.24,11.58]
[1720850657087,1.0,139.28,139.22,1.43618552]
[1720850657392,1.0,139.28,139.24,11.58]
[1720850658975,32.58,139.3,139.24,11.58]
[1720850659183,1.0,139.29,139.25,11.58]
[1720850660389,1.0,139.29,139.22,1.43618552]
[1720850660597,1.0,139.29,139.24,11.58]
[1720850662079,12.58,139.29,139.22,1.4361951]
[1720850662282,12.58,139.29,139.24,11.58]
[1720850662682,1.0,139.29,139.24,11.58]
[1720850663295,1.0,139.29,139.26,11.58]
[1720850665612,16.0349,139.34,139.28,11.58]
[1720850665785,1.0,139.33,139.3,11.58]
[1720850666797,1.0,139.33,139.26,1.43568399]
[1720850666798,1.0,139.33,139.29,11.58]
[1720850667113,1.0,139.33,139.26,1.43568399]
[1720850667279,12.58,139.33,139.28,11.58]
[1720850667907,1.0,139.33,139.29,11.58]
[1720850668083,1.0,139.33,139.3,11.58]
[1720850668403,1.0,139.33,139.29,11.58]
[1720850669123,27.6149,139.34,139.29,11.58]
[1720850669414,0.5,139.33,139.29,11.58]
[1720850674594,57.08,139.33,139.25,15.4114]
[1720850674791,11.58,139.32,139.27,11.58]
[1720850674996,0.5,139.31,139.27,11.58]
[1720850675504,0.5,139.31,139.25,16.84739297]
[1720850675697,0.5,139.31,139.27,11.58]
[1720850679219,0.5,139.31,139.25,16.84739701]
[1720850679410,0.5,139.31,139.27,11.58]
[1720850680090,16.0349,139.3,139.21,15.4114]
[1720850680306,12.08,139.29,139.24,11.58]
[1720850680615,0.5,139.29,139.25,13.01629266]
[1720850680795,20.5,139.29,139.26,11.58]
[1720850681519,0.5,139.29,139.26,11.58]
[1720850681817,0.5,139.29,139.27,11.58]
[1720850682015,0.5,139.3,139.27,11.58]
[1720850682228,0.5,139.31,139.28,11.58]
[1720850683737,0.5,139.31,139.27,11.58]
[1720850685225,12.08,139.31,139.22,1.43610893]
[1720850685420,12.08,139.31,139.26,11.58]
[1720850685626,0.5,139.31,139.27,11.58]
[1720850687050,31.58,139.32,139.27,11.58]
[1720850688350,11.58,139.31,139.26,11.58]
[1720850688560,11.58,139.31,139.22,65.0]
[1720850688765,11.58,139.31,139.26,11.58]
[1720850689351,11.58,139.3,139.25,11.58]
[1720850689546,0.5,139.29,139.23,1.43615867]
[1720850689844,0.5,139.29,139.25,11.58]
[1720850690042,0.5,139.29,139.23,1.43610963]
[1720850690252,0.5,139.29,139.25,11.58]
[1720850690839,12.08,139.29,139.23,1.43610963]
[1720850691163,12.08,139.29,139.24,11.58]
[1720850691328,0.5,139.29,139.24,11.58]
[1720850691825,0.5,139.29,139.25,11.58]
[1720850692028,0.5,139.29,139.26,11.58]
[1720850694031,0.5,139.29,139.25,11.58]
[1720850694729,12.08,139.29,139.21,15.4114]
[1720850694958,12.08,139.29,139.23,11.58]
[1720850695337,11.58,139.28,139.23,11.58]
[1720850695648,0.5,139.27,139.23,11.58]
[1720850697562,0.5,139.27,139.24,11.58]
[1720850697743,0.5,139.28,139.24,11.58]
[1720850701569,0.5,139.28,139.23,11.58]
[1720850703443,0.5,139.28,139.18,15.2738]
[1720850703647,11.58,139.27,139.21,11.58]
[1720850703964,0.5,139.26,139.22,11.58]
[1720850704333,0.5,139.27,139.23,13.01640985]
[1720850704755,0.5,139.27,139.24,11.58]
[1720850705143,20.0,139.29,139.24,11.58]
[1720850705336,0.5,139.28,139.21,1.43629097]
[1720850705537,0.5,139.28,139.25,11.58]
[1720850706667,0.5,139.28,139.21,45.0]
[1720850706834,0.5,139.28,139.24,11.58]
[1720850707039,0.5,139.28,139.21,1.43041438]
[1720850707338,0.5,139.28,139.24,11.58]
[1720850707864,12.08,139.28,139.23,11.58]
[1720850708660,0.5,139.28,139.24,11.58]
[1720850710864,12.08,139.28,139.23,11.58]
[1720850711044,12.08,139.28,139.22,11.58]
[1720850711765,12.08,139.28,139.23,11.58]
[1720850713380,11.58,139.27,139.22,11.58]
[1720850713547,12.08,139.26,139.21,11.58]
[1720850714343,12.08,139.26,139.18,15.2738]
[1720850714544,12.08,139.26,139.21,11.58]
[1720850714545,0.5,139.25,139.21,11.58]
[1720850716069,12.08,139.25,139.18,15.2738]
[1720850716383,12.08,139.25,139.2,11.58]
[1720850718969,11.58,139.24,139.15,21.5521]
[1720850719170,11.58,139.24,139.19,11.58]
[1720850719171,0.5,139.23,139.19,11.58]
[1720850719961,0.5,139.24,139.2,13.01675441]
[1720850720345,175.04091351,156.1,139.23,11.58]
[1720850720346,0.5,139.28,139.23,11.58]
[1720850720546,12.08,139.32,139.26,11.58]
[1720850720996,11.58,139.3,139.25,11.58]
[1720850721290,0.5,139.29,139.25,11.58]
[1720850723285,12.08,139.29,139.24,11.58]
[1720850723473,0.5,139.28,139.24,11.58]
[1720850724083,0.5,139.28,139.2,6.2783]
[1720850724282,11.58,139.27,139.22,11.58]
[1720850724587,12.08,139.26,139.21,11.58]
[1720850724786,0.5,139.26,139.22,13.01656927]
[1720850725178,0.5,139.26,139.23,11.58]
[1720850725377,0.5,139.27,139.23,11.58]
[1720850725893,12.08,139.27,139.22,11.58]
[1720850726101,0.5,139.26,139.22,11.58]
[1720850726996,0.5,139.26,139.23,11.58]
[1720850727303,0.5,139.27,139.23,13.01637943]
[1720850727798,27.4353,139.28,139.25,11.58]
[1720850727799,0.5,139.28,139.25,11.58]
[1720850727969,32.08,139.31,139.25,11.58]
[1720850728808,12.08,139.31,139.26,11.58]
[1720850729176,0.5,139.31,139.26,11.58]
[1720850729490,12.08,139.31,139.26,11.58]
[1720850729980,20.0,139.3,139.26,11.58]
[1720850730184,0.5,139.29,139.26,11.58]
[1720850730895,0.5,139.29,139.22,1.43611799]
[1720850731085,0.5,139.29,139.21,51.3168]
[1720850731286,0.5,139.3,139.26,11.58]
[1720850733996,0.5,139.3,139.21,51.3168]
[1720850734201,12.08,139.3,139.25,11.58]
[1720850734400,0.5,139.29,139.25,11.58]
[1720850737703,0.5,139.29,139.24,11.58]
[1720850739479,22.08,139.29,139.22,1.43618081]
[1720850739684,55.5,139.29,139.19,15.2738]
[1720850739880,11.58,139.27,139.22,11.58]
[1720850740092,0.5,139.26,139.22,11.58]
[1720850741417,0.5,139.26,139.23,11.58]
[1720850741715,0.5,139.28,139.23,11.58]
[1720850742219,0.5,139.3,139.24,1.43633836]
[1720850742418,20.0,139.31,139.28,11.58]
[1720850742789,20.5,139.31,139.28,11.58]
[1720850744199,32.08,139.31,139.26,11.58]
[1720850746911,32.08,139.31,139.25,1.43595252]
[1720850747119,20.5,139.31,139.27,11.58]
[1720850747422,32.4602,139.36,139.3,11.58]
[1720850747592,20.5,139.35,139.3,11.58]
[1720850747792,32.08,139.35,139.3,11.58]
[1720850748309,12.08,139.35,139.3,11.58]
[1720850749615,20.0,139.34,139.3,11.58]
[1720850749816,20.5,139.34,139.31,1.43565865]
[1720850750119,20.5,139.35,139.31,13.01565865]
[1720850750628,20.5,139.35,139.31,11.58]
[1720850751692,10.5,139.39,139.32,1.43549214]
[1720850751899,10.5,139.39,139.33,11.58]
[1720850751900,11.58,139.38,139.33,11.58]
[1720850752098,0.5,139.37,139.33,11.58]
[1720850752528,12.08,139.37,139.32,11.58]
[1720850753030,20.5,139.36,139.32,11.58]
[1720850753405,20.5,139.36,139.3,1.43537819]
[1720850753715,0.5,139.36,139.33,11.58]
[1720850754030,0.5,139.37,139.33,11.58]
[1720850754192,0.5,139.37,139.34,11.58]
[1720850754995,0.5,139.38,139.34,11.58]
[1720850755197,12.08,139.38,139.34,11.58]
[1720850755530,20.0,139.37,139.34,11.58]
[1720850755827,0.5,139.36,139.33,11.58]
[1720850758406,0.5,139.36,139.31,1.43528459]
[1720850759222,0.5,139.36,139.3,6.0412]
[1720850759407,0.5,139.36,139.31,1.4353159]
[1720850761038,0.5,139.39,139.31,1.4353159]
[1720850761240,0.5,139.39,139.35,11.58]
[1720850761532,0.5,139.39,139.36,11.58]
[1720850762636,32.08,139.39,139.34,11.58]
[1720850762808,42.08,139.39,139.3,6.0412]
[1720850763010,11.58,139.36,139.3,6.0412]
[1720850763210,0.5,139.35,139.31,11.58]
[1720850763601,11.58,139.36,139.31,11.58]
[1720850763859,11.58,139.36,139.29,16.4107]
[1720850763860,0.5,139.35,139.29,16.4107]
[1720850764001,0.5,139.35,139.31,11.58]
[1720850764417,11.58,139.37,139.32,13.01548547]
[1720850764633,20.5,139.36,139.32,11.58]
[1720850766026,20.5,139.36,139.31,11.58]
[1720850766027,0.5,139.35,139.31,11.58]
[1720850767007,11.58,139.36,139.32,1.43542848]
[1720850767224,11.58,139.36,139.31,13.01535536]
[1720850767629,11.58,139.36,139.3,1.43541813]
[1720850767937,31.58,139.35,139.3,11.58]
[1720850768431,0.5,139.34,139.3,11.58]
[1720850768633,12.08,139.34,139.29,11.58]
[1720850769333,12.08,139.34,139.3,1.43560537]
[1720850769540,0.5,139.34,139.3,13.01560537]
[1720850769908,0.5,139.34,139.31,11.58]
[1720850770216,11.58,139.37,139.32,13.01549063]
[1720850770414,0.5,139.36,139.33,11.58]
[1720850770614,0.5,139.38,139.33,11.58]
[1720850770835,12.08,139.38,139.33,11.58]
[1720850771446,0.5,139.38,139.33,11.58]
[1720850771818,12.08,139.38,139.33,11.58]
[1720850772649,11.58,139.37,139.32,11.58]
[1720850772849,0.5,139.36,139.32,11.58]
[1720850773413,12.08,139.36,139.26,21.9843]
[1720850773739,0.5,139.35,139.31,11.58]
[1720850773942,12.08,139.35,139.26,21.9843]
[1720850774242,32.08,139.35,139.3,11.58]
[1720850774538,0.5,139.34,139.3,11.58]
[1720850774729,12.08,139.34,139.26,21.9843]
[1720850774933,12.08,139.34,139.29,11.58]
[1720850776229,12.08,139.34,139.26,15.553]
[1720850776230,11.58,139.33,139.26,15.553]
[1720850776436,12.08,139.32,139.27,11.58]
[1720850777435,0.5,139.31,139.27,11.58]
[1720850777631,0.5,139.31,139.26,15.553]
[1720850777822,12.08,139.31,139.23,6.4754]
[1720850778024,12.08,139.31,139.26,11.58]
[1720850778916,0.5,139.31,139.26,11.58]
[1720850779119,0.5,139.32,139.27,1.43591687]
[1720850779532,0.5,139.32,139.26,11.58]
[1720850779734,0.5,139.32,139.23,6.4754]
[1720850780031,65.5,139.32,139.25,11.58]
[1720850780718,11.58,139.3,139.25,11.58]
[1720850780924,0.5,139.29,139.23,6.4754]
[1720850781122,0.5,139.29,139.26,11.58]
[1720850781528,20.5,139.3,139.26,11.58]
[1720850782315,0.5,139.29,139.26,11.58]
[1720850782624,0.5,139.31,139.27,13.01601324]
[1720850782825,20.5,139.31,139.27,13.01601324]
[1720850784438,12.08,139.31,139.26,11.58]
[1720850785722,12.08,139.31,139.23,6.4754]
[1720850785936,11.58,139.3,139.22,1.43607896]
[1720850786136,12.08,139.29,139.24,11.58]
[1720850787238,0.5,139.28,139.24,11.58]
[1720850787739,12.08,139.28,139.21,15.553]
[1720850787945,12.08,139.28,139.23,11.58]
[1720850789136,12.08,139.28,139.18,270.9871]
[1720850789137,11.58,139.25,139.18,270.9871]
[1720850789437,0.5,139.24,139.2,11.58]
[1720850789625,0.5,139.24,139.18,15.6871]
[1720850789941,0.5,139.24,139.2,11.58]
[1720850790340,12.08,139.24,139.19,11.58]
[1720850790532,0.5,139.25,139.18,15.6871]
[1720850791648,0.5,139.25,139.19,1.43657557]
[1720850794027,0.5,139.25,139.18,15.6871]
[1720850794351,0.5,139.25,139.19,1.4366142]
[1720850795440,0.5,139.25,139.15,6.6107]
[1720850795649,20.5,139.25,139.16,65.0]
[1720850795924,30.5,139.25,139.16,20.0]
[1720850796245,30.5,139.25,139.15,6.6107]
[1720850797127,10.0,139.22,139.12,0.8660128]
[1720850797445,0.5,139.21,139.13,1.43708666]
[1720850798476,45.5,139.22,139.13,1.43708666]
[1720850800149,45.5,139.22,139.13,46.43708666]
[1720850800378,16.1009,139.21,139.13,46.43708666]
[1720850800570,0.5,139.2,139.13,46.43708666]
[1720850801849,16.6009,139.21,139.13,46.43708666]
[1720850802067,0.5,139.2,139.13,46.43708666]
[1720850803379,0.5,139.2,139.12,20.8660128]
[1720850803893,0.5,139.2,139.13,1.43708088]
[1720850804067,6.5395,139.19,139.12,0.8660128]
[1720850804371,20.5,139.18,139.12,0.8660128]
[1720850804569,0.5,139.17,139.12,0.8660128]
[1720850809880,20.5,139.18,139.12,0.8660128]
[1720850810581,20.5,139.18,139.14,11.6]
[1720850812767,0.5,139.17,139.14,11.6]
[1720850813283,0.5,139.17,139.13,11.6]
[1720850813477,0.5,139.17,139.14,1.43724428]
[1720850814086,0.5,139.17,139.12,0.8660128]
[1720850814271,28.0855,139.16,139.12,0.8660128]
[1720850814469,0.5,139.15,139.12,0.8660128]
[1720850816177,0.5,139.15,139.12,2.30338264]
[1720850816377,28.0855,139.16,139.12,2.30338264]
[1720850817995,0.5,139.15,139.12,0.8660128]
[1720850818570,28.0855,139.16,139.12,2.30338391]
[1720850820393,28.0855,139.16,139.12,0.8660128]
[1720850820394,0.5,139.15,139.12,0.8660128]
[1720850827279,28.0855,139.16,139.12,0.8660128]
[1720850827474,0.5,139.15,139.12,0.8660128]
[1720850830080,28.0855,139.16,139.12,0.8660128]
[1720850830277,16.4855,139.16,139.12,0.8660128]
[1720850830585,16.4855,139.16,139.13,11.6]
[1720850831411,0.5,139.17,139.13,11.6]
[1720850831902,12.1,139.17,139.12,0.8660128]
[1720850832080,12.1,139.17,139.12,12.4660128]
[1720850832701,11.6,139.16,139.12,0.8660128]
[1720850832995,0.5,139.15,139.12,0.8660128]
[1720850834009,0.5,139.15,139.12,2.30344905]
[1720850834303,0.5,139.15,139.12,0.8660128]
[1720850834502,0.5,139.15,139.12,2.30345267]
[1720850835805,0.5,139.15,139.12,0.8660128]
[1720850836605,12.1,139.15,139.12,0.8660128]
[1720850836789,12.1,139.14,139.12,0.8660128]
[1720850836988,0.5,139.13,139.12,0.8660128]
[1720850839291,0.5,139.16,139.12,0.8660128]